bitfinex/quotes_ETHUSD_20250920
["timestamp","ask_amount","ask_price","bid_price","bid_amount"]
[1758405995061,0.33582001,4498.1,4498.0,7.938]
[1758405995248,0.1271825,4498.1,4498.0,7.938]
[1758405995448,0.33582001,4498.1,4498.0,7.938]
[1758405995679,0.1271825,4498.1,4498.0,7.938]
[1758405995880,0.33582001,4498.1,4498.0,7.938]
[1758405996081,0.1271825,4498.1,4498.0,7.938]
[1758405996286,0.33582001,4498.1,4498.0,7.938]
[1758405996462,0.1271825,4498.1,4498.0,7.938]
[1758405996664,0.33582001,4498.1,4498.0,7.938]
[1758405996892,0.1271825,4498.1,4498.0,7.938]
[1758405997065,0.33582001,4498.1,4498.0,7.938]
[1758405997264,0.1271825,4498.1,4498.0,7.938]
[1758405997578,0.33582001,4498.1,4498.0,7.938]
[1758405997893,0.1271825,4498.1,4498.0,7.936]
[1758405998089,0.33582001,4498.1,4498.0,7.936]
[1758405998294,0.1271825,4498.1,4498.0,7.936]
[1758405998495,0.33582001,4498.1,4498.0,7.936]
[1758405998697,0.1271825,4498.1,4498.0,7.936]
[1758405998859,0.33582001,4498.1,4498.0,7.936]
[1758405999064,0.1271825,4498.1,4498.0,7.936]
[1758405999264,0.33582001,4498.1,4498.0,7.936]
[1758405999461,0.1271825,4498.1,4498.0,7.936]
[1758405999662,0.33582001,4498.1,4498.0,7.936]
[1758405999861,0.1271825,4498.1,4498.0,7.936]
[1758406000095,0.33582001,4498.1,4498.0,7.936]
[1758406000399,0.1271825,4498.1,4498.0,7.936]
[1758406000583,0.33582001,4498.1,4498.0,7.936]
[1758406000782,0.1271825,4498.1,4498.0,7.936]
[1758406001005,0.33582001,4498.1,4498.0,7.936]
[1758406001212,0.1271825,4498.1,4498.0,7.936]
[1758406001507,0.33582001,4498.1,4498.0,7.936]
[1758406001685,0.1271825,4498.1,4498.0,7.936]
[1758406001921,0.33582082,4498.1,4498.0,7.936]
[1758406002096,0.1271825,4498.1,4498.0,7.936]
[1758406002407,0.33582082,4498.1,4498.0,7.936]
[1758406003098,0.1271825,4498.1,4498.0,7.936]
[1758406003305,0.33582082,4498.1,4498.0,7.936]
[1758406003504,0.1271825,4498.1,4498.0,7.936]
[1758406003707,0.33582082,4498.1,4498.0,7.936]
[1758406003867,0.1271825,4498.1,4498.0,7.936]
[1758406004068,0.33582082,4498.1,4498.0,7.936]
[1758406004269,0.1271825,4498.1,4498.0,7.936]
[1758406004486,0.33582082,4498.1,4498.0,7.936]
[1758406004688,0.1271825,4498.1,4498.0,7.936]
[1758406004983,0.33582082,4498.1,4498.0,7.936]
[1758406005178,0.1271825,4498.1,4498.0,7.936]
[1758406005375,0.33582082,4498.1,4498.0,7.936]
[1758406005577,0.1271825,4498.1,4498.0,7.936]
[1758406005781,0.33582082,4498.1,4498.0,7.936]
[1758406005981,0.1271825,4498.1,4498.0,7.936]
[1758406006181,0.33582082,4498.1,4498.0,7.936]
[1758406006380,0.1271825,4498.1,4498.0,7.936]
[1758406006580,0.33582082,4498.1,4498.0,7.936]
[1758406006808,0.1271825,4498.1,4498.0,7.936]
[1758406006972,0.33582082,4498.1,4498.0,7.936]
[1758406007174,0.1271825,4498.1,4498.0,7.936]
[1758406007372,0.33582082,4498.1,4498.0,7.936]
[1758406007574,0.1271825,4498.1,4498.0,7.936]
[1758406007779,0.33582082,4498.1,4498.0,7.936]
[1758406007975,0.1271825,4498.1,4498.0,7.936]
[1758406008294,0.33582082,4498.1,4498.0,7.936]
[1758406008497,0.1271825,4498.1,4498.0,7.936]
[1758406008795,0.33582082,4498.1,4498.0,7.936]
[1758406008977,0.1271825,4498.1,4498.0,7.936]
[1758406009176,0.33582082,4498.1,4498.0,7.936]
[1758406009413,0.1271825,4498.1,4498.0,7.936]
[1758406009607,0.33582082,4498.1,4498.0,7.936]
[1758406009806,0.1271825,4498.1,4498.0,7.936]
[1758406010008,0.33582082,4498.1,4498.0,7.936]
[1758406010187,0.1271825,4498.1,4498.0,7.936]
[1758406010390,0.33582082,4498.1,4498.0,7.936]
[1758406011212,0.56802082,4498.1,4498.0,7.936]
[1758406013218,2.79118171,4498.1,4498.0,7.936]
[1758406014136,2.79118171,4498.1,4498.0,4.231]
[1758406014438,0.56802082,4498.1,4498.0,4.231]
[1758406015287,0.56803937,4498.1,4498.0,4.231]
[1758406017520,0.33583937,4498.1,4498.0,4.231]
[1758406020632,0.1271825,4498.1,4498.0,4.231]
[1758406020865,0.33583937,4498.1,4498.0,4.231]
[1758406021155,0.1271825,4498.1,4498.0,4.231]
[1758406021461,0.33583937,4498.1,4498.0,4.2532321]
[1758406021638,0.1271825,4498.1,4498.0,4.2532321]
[1758406022149,0.33583937,4498.1,4498.0,4.2532321]
[1758406022344,0.1271825,4498.1,4498.0,4.2532321]
[1758406022858,0.33583937,4498.1,4498.0,4.2532321]
[1758406033738,0.1271825,4498.1,4498.0,4.2532321]
[1758406034035,0.79555649,4498.1,4498.0,4.2532321]
[1758406034375,1.00421336,4498.1,4498.0,4.2532321]
[1758406035634,1.00421336,4498.1,4498.0,0.0232321]
[1758406038491,1.00421336,4498.1,4498.0,0.001]
[1758406041757,1.00418037,4498.1,4498.0,0.001]
[1758406042191,0.67037399,4498.1,4498.0,0.001]
[1758406042394,0.79555149,4498.1,4498.0,0.001]
[1758406042697,1.00418067,4498.1,4498.0,0.001]
[1758406043603,1.23558067,4498.1,4498.0,0.001]
[1758406046004,1.23558476,4498.1,4498.0,0.001]
[1758406046206,1.23558476,4498.1,4498.0,4.231]
[1758406047963,1.00418476,4498.1,4498.0,4.231]
[1758406048168,1.23558476,4498.1,4498.0,4.231]
[1758406048408,3.45874565,4498.1,4498.0,4.231]
[1758406048917,1.23558476,4498.1,4498.0,4.231]
[1758406050602,3.45874565,4498.1,4498.0,4.231]
[1758406050968,1.23558476,4498.1,4498.0,4.231]
[1758406053303,3.45874565,4498.1,4498.0,4.231]
[1758406054410,1.23558476,4498.1,4498.0,4.231]
[1758406060706,1.00418476,4498.1,4498.0,4.231]
[1758406063314,1.00414363,4498.1,4498.0,4.231]
[1758406066160,1.00414409,4498.1,4498.0,4.231]
[1758406070158,1.23794409,4498.1,4498.0,4.231]
[1758406075379,1.00414409,4498.1,4498.0,4.231]
[1758406078382,1.00423107,4498.1,4498.0,4.231]
[1758406081326,1.00423107,4498.1,4498.0,0.001]
[1758406083632,1.23803107,4498.1,4498.0,0.001]
[1758406085478,0.56965708,4498.1,4498.0,0.001]
[1758406086108,0.33585708,4498.1,4498.0,0.001]
[1758406089033,0.21066068,4498.1,4498.0,0.001]
[1758406089231,0.33585777,4498.1,4498.0,0.001]
[1758406090603,0.42497986,4498.1,4498.0,0.001]
[1758406093839,0.12719709,4498.1,4498.0,7.84270736]
[1758406094000,0.12719709,4498.1,4498.0,11.68767526]
[1758406094191,0.12719709,4498.1,4498.0,12.35600756]
[1758406095091,0.002,4498.1,4498.0,12.35600756]
[1758406096004,0.002,4498.1,4498.0,7.13134825]
[1758406096750,0.002,4498.1,4498.0,11.36134825]
[1758406098162,0.002,4498.1,4498.0,16.58600756]
[1758406099633,0.002,4498.1,4498.0,12.35600756]
[1758406106066,0.002,4498.1,4498.0,16.58600756]
[1758406107277,0.002,4498.1,4498.0,16.48600756]
[1758406109874,0.002,4498.1,4498.0,16.48700756]
[1758406110366,0.002,4498.1,4498.0,16.32180756]
[1758406110526,0.002,4498.1,4498.0,16.48700756]
[1758406111124,0.002,4498.1,4498.0,12.78500756]
[1758406111324,0.002,4498.1,4498.0,16.48600756]
[1758406113325,0.002,4498.5,4498.2,2.22311146]
[1758406113530,0.002,4498.5,4498.4,7.44767193]
[1758406114540,0.002,4498.5,4498.4,7.53676563]
[1758406117295,0.002,4498.5,4498.4,11.23676563]
[1758406117503,0.002,4498.5,4498.4,15.46476563]
[1758406121042,0.002,4498.5,4498.4,11.76476563]
[1758406121178,0.002,4498.5,4498.4,17.06716453]
[1758406121701,0.002,4498.5,4498.4,17.23236453]
[1758406122119,0.002,4498.5,4498.4,17.06716453]
[1758406124189,0.002,4498.5,4498.4,17.23236453]
[1758406128458,1e-08,4498.6,4498.5,2.2229632]
[1758406128748,0.002,4499.4,4499.0,6.44471614]
[1758406128953,0.002,4499.4,4499.0,15.36837545]
[1758406129250,0.002,4499.4,4499.0,15.53357545]
[1758406129549,0.002,4499.4,4499.0,11.31157546]
[1758406129753,0.002,4499.4,4499.0,11.40065151]
[1758406130056,0.002,4499.4,4499.0,13.18519498]
[1758406131149,0.002,4499.4,4499.0,13.01999498]
[1758406131452,0.002,4499.4,4499.0,13.18519498]
[1758406133950,0.002,4499.4,4499.0,13.01999498]
[1758406134354,0.002,4499.4,4499.0,17.24199497]
[1758406142424,0.002,4499.4,4499.0,17.15291892]
[1758406143769,0.002,4499.4,4499.0,16.14609858]
[1758406144126,0.002,4499.4,4499.3,6.44056794]
[1758406144324,0.002,4499.4,4499.3,16.19287356]
[1758406144928,0.2337,4499.4,4499.3,16.19287356]
[1758406152006,0.2337,4499.4,4499.3,3.96799999]
[1758406152161,0.2337,4499.4,4499.3,7.66499999]
[1758406156496,0.2337,4499.4,4499.3,3.96799999]
[1758406156799,0.2337,4499.4,4499.3,7.66499999]
[1758406158299,0.2337,4499.4,4499.3,3.96799999]
[1758406158505,0.35864907,4499.4,4499.3,7.66499999]
[1758406159000,0.64093144,4499.4,4499.3,7.66499999]
[1758406159466,0.64093144,4499.4,4499.3,7.66599999]
[1758406163085,0.35864907,4499.4,4499.3,7.66599999]
[1758406164189,0.2337,4499.4,4499.3,7.66599999]
[1758406164520,0.2337,4499.4,4499.3,3.96899999]
[1758406167420,2.45621855,4499.4,4499.3,3.96899999]
[1758406167819,0.2337,4499.4,4499.3,3.96899999]
[1758406172363,0.35852242,4499.4,4499.3,3.96899999]
[1758406172854,2.58104097,4499.4,4499.3,3.96899999]
[1758406174834,0.35852242,4499.4,4499.3,3.96899999]
[1758406176760,2.58108635,4499.4,4499.3,3.96899999]
[1758406177436,3.08560252,4499.4,4499.3,3.96899999]
[1758406183068,5.85390252,4499.4,4499.3,0.001]
[1758406183271,10.50885361,4499.4,4499.3,0.001]
[1758406188216,14.20485361,4499.4,4499.3,0.001]
[1758406192617,14.99685361,4499.4,4499.3,0.001]
[1758406200439,17.33985361,4499.4,4499.3,0.001]
[1758406200614,14.99685361,4499.4,4499.3,0.001]
[1758406204003,14.99670403,4499.4,4499.3,0.001]
[1758406205744,10.77886506,4499.4,4499.3,0.001]
[1758406205918,16.00439637,4499.4,4499.3,0.001]
[1758406215626,16.004462,4499.4,4499.3,0.001]
[1758406216881,6.01476556,4498.9,4498.8,0.001]
[1758406217088,15.26949284,4498.9,4498.8,0.001]
[1758406217238,15.50539284,4498.9,4498.8,0.001]
[1758406230184,15.26949284,4498.9,4498.8,0.001]
[1758406230719,15.50539284,4498.9,4498.8,0.001]
[1758406230874,16.00990901,4498.9,4498.8,0.001]
[1758406233006,15.77400901,4498.9,4498.8,0.001]
[1758406233371,10.5484777,4498.9,4498.8,0.001]
[1758406233587,10.5474777,4498.9,4498.8,0.2404]
[1758406239712,10.21428173,4498.9,4498.8,0.2404]
[1758406239910,10.54764515,4498.9,4498.8,0.2404]
[1758406240148,12.47064515,4498.9,4498.8,0.2404]
[1758406240446,17.69617646,4498.9,4498.8,0.2404]
[1758406243342,17.69617646,4498.9,4498.8,0.001]
[1758406247180,2.2229632,4498.5,4498.4,0.001]
[1758406247371,6.25132662,4498.5,4498.4,0.001]
[1758406247572,9.25132662,4498.5,4498.4,0.001]
[1758406247970,9.49652662,4498.5,4498.4,0.001]
[1758406248451,9.49652662,4498.5,4498.4,0.2462]
[1758406249268,9.49652662,4498.5,4498.4,0.001]
[1758406249467,9.49652662,4498.5,4498.4,0.2462]
[1758406255861,9.1631632,4498.5,4498.4,0.2462]
[1758406256062,9.49670301,4498.5,4498.4,0.2462]
[1758406261533,9.73540301,4498.5,4498.4,0.001]
[1758406261888,9.49670301,4498.5,4498.4,0.001]
[1758406262318,9.73540301,4498.5,4498.4,0.001]
[1758406265812,13.95909204,4498.5,4498.4,0.001]
[1758406270523,14.75109204,4498.5,4498.4,0.001]
[1758406270721,14.51239204,4498.5,4498.4,0.001]
[1758406271029,14.75179204,4498.5,4498.4,0.001]
[1758406278844,14.41825223,4498.5,4498.4,0.001]
[1758406279044,14.75161162,4498.5,4498.4,0.001]
[1758406282949,14.75161085,4498.5,4498.4,0.001]
[1758406290148,14.74761085,4498.5,4498.4,0.001]
[1758406290747,3.792,4498.4,4498.0,0.001]
[1758406290986,10.23884992,4498.1,4498.0,0.001]
[1758406291191,14.26520854,4498.1,4498.0,0.001]
[1758406291487,14.35435268,4498.1,4498.0,0.001]
[1758406295356,9.33866365,4498.1,4498.0,0.001]
[1758406295630,9.33866365,4498.1,4498.0,0.2507]
[1758406298316,9.33866365,4498.1,4498.0,0.001]
[1758406300399,9.57406365,4498.1,4498.0,0.001]
[1758406302449,11.49706365,4498.1,4498.0,0.001]
[1758406303378,11.4969426,4498.1,4498.0,0.001]
[1758406304342,11.2615426,4498.1,4498.0,0.001]
[1758406306182,11.5080426,4498.1,4498.0,0.001]
[1758406307338,11.2615426,4498.1,4498.0,0.001]
[1758406309150,11.5080426,4498.1,4498.0,0.001]
[1758406309696,11.2615426,4498.1,4498.0,0.001]
[1758406319549,11.2615426,4498.1,4498.0,0.2269]
[1758406320154,11.2615426,4498.1,4498.0,0.001]
[1758406322019,11.2615426,4498.1,4498.0,0.2269]
[1758406322020,0.42238171,4498.1,4498.0,0.2269]
[1758406322220,0.20827348,4498.7,4498.2,2.22311146]
[1758406322435,0.002,4498.8,4498.4,4.22368903]
[1758406322638,0.002,4498.8,4498.5,0.67308197]
[1758406322834,0.002,4498.8,4498.5,2.89604072]
[1758406323026,0.002,4498.8,4498.6,0.24812913]
[1758406327250,0.002,4498.8,4498.7,0.2453]
[1758406335372,2.22291379,4498.6,4498.5,0.44718197]
[1758406335570,0.90991741,4498.8,4498.5,0.44718197]
[1758406335798,2.2228691,4498.7,4498.5,0.44718197]
[1758406335995,3.691,4498.6,4498.5,0.44718197]
[1758406337011,3.691,4498.6,4498.5,4.41518196]
[1758406340417,3.691,4498.6,4498.5,4.65778196]
[1758406343289,3.692,4498.8,4498.5,4.65778196]
[1758406343501,0.002,4498.6,4498.5,4.41518196]
[1758406344227,0.002,4498.6,4498.5,4.65778196]
[1758406346422,0.002,4498.6,4498.5,6.88074516]
[1758406347232,0.002,4498.6,4498.5,4.65778196]
[1758406348226,0.002,4498.6,4498.5,4.41518196]
[1758406350607,0.002,4498.6,4498.5,6.88074516]
[1758406351321,0.12697012,4498.6,4498.5,6.88074516]
[1758406351627,0.002,4498.6,4498.5,4.41518196]
[1758406351854,0.12693078,4498.6,4498.5,4.41518196]
[1758406352704,0.12693078,4498.6,4498.5,4.65778196]
[1758406354825,0.12693078,4498.6,4498.5,4.41518196]
[1758406377271,0.12693078,4498.6,4498.5,6.63814516]
[1758406377571,0.12693078,4498.6,4498.5,4.64678196]
[1758406377868,0.12693078,4498.6,4498.5,4.41518196]
[1758406381076,0.12693078,4498.6,4498.5,6.63814516]
[1758406381442,0.12693078,4498.6,4498.5,4.41518196]
[1758406384566,0.12693078,4498.6,4498.5,6.63814516]
[1758406384768,0.12693078,4498.6,4498.5,6.88744516]
[1758406385072,0.002,4498.6,4498.5,6.88744516]
[1758406393373,0.002,4498.6,4498.5,6.63814516]
[1758406410705,0.002,4498.6,4498.5,6.88544516]
[1758406411076,0.002,4498.6,4498.5,6.63814516]
[1758406438430,0.002,4498.6,4498.5,6.86564516]
[1758406438865,0.002,4498.6,4498.5,6.63814516]
[1758406440582,0.002,4498.6,4498.5,6.86564516]
[1758406443795,0.002,4499.1,4499.0,2.22271615]
[1758406443957,0.002,4499.1,4499.0,10.51241491]
[1758406444156,0.002,4499.1,4499.0,10.49018775]
[1758406445397,0.002,4499.1,4499.0,10.71918775]
[1758406445693,0.002,4499.1,4499.0,10.81027411]
[1758406449781,0.2536,4499.9,4499.6,6.17241976]
[1758406449982,0.2536,4499.9,4499.6,9.85841976]
[1758406450183,0.2436,4499.7,4499.6,9.85841976]
[1758406451420,0.002,4499.7,4499.6,9.85841976]
[1758406452010,0.002,4499.7,4499.6,9.94749164]
[1758406452214,0.2436,4499.7,4499.6,11.16448772]
[1758406456004,0.002,4499.7,4499.6,11.16448772]
[1758406461222,0.002,4499.7,4499.6,11.16548772]
[1758406479385,0.012,4499.9,4499.7,6.17037037]
[1758406480607,0.012,4499.9,4499.7,6.25944226]
[1758406480780,0.012,4499.9,4499.7,8.14397113]
[1758406480968,0.012,4499.9,4499.7,8.05489924]
[1758406484083,0.012,4499.9,4499.7,8.49852715]
[1758406510621,0.36793717,4499.8,4499.7,4.3916279]
[1758406511079,0.73587434,4499.8,4499.7,4.3916279]
[1758406511983,0.73587434,4499.8,4499.7,10.29799828]
[1758406512307,0.61113717,4499.8,4499.7,10.29799828]
[1758406512506,0.61113717,4499.8,4499.7,9.85437037]
[1758406512676,0.61113717,4499.8,4499.7,7.63199999]
[1758406513482,0.61113717,4499.8,4499.7,3.684]
[1758406515203,0.61113717,4499.8,4499.7,5.90637038]
[1758406515700,0.61113717,4499.8,4499.7,3.684]
[1758406516095,0.61113717,4499.8,4499.7,5.90637038]
[1758406521344,0.61113717,4499.8,4499.7,9.85437037]
[1758406521544,0.61113717,4499.8,4499.7,6.17037037]
[1758406521743,0.61113717,4499.8,4499.7,7.63199999]
[1758406522110,0.61113717,4499.8,4499.7,9.85437037]
[1758406525357,0.36993717,4499.8,4499.7,9.85437037]
[1758406525562,0.002,4499.8,4499.7,11.0621542]
[1758406525729,0.002,4499.8,4499.7,11.2893542]
[1758406525918,0.002,4499.8,4499.7,11.50133204]
[1758406535300,0.002,4499.8,4499.7,7.55333205]
[1758406535801,0.002,4499.8,4499.7,4.12317784]
[1758406536003,0.002,4499.8,4499.6,0.001]
[1758406536004,4.57635315,4499.8,4499.6,0.001]
[1758406536206,0.12465011,4499.7,4499.6,0.001]
[1758406536705,0.35475011,4499.7,4499.6,0.001]
[1758406538370,0.12465011,4499.7,4499.6,0.001]
[1758406538572,0.35475011,4499.7,4499.6,0.001]
[1758406544511,0.35475004,4499.7,4499.6,0.001]
[1758406550624,0.35475004,4499.7,4499.6,3.94899999]
[1758406553732,0.12465004,4499.7,4499.6,3.94899999]
[1758406553940,0.36005004,4499.7,4499.6,3.94899999]
[1758406555433,0.12465004,4499.7,4499.6,3.94899999]
[1758406555738,3.80865004,4499.7,4499.6,3.94899999]
[1758406556704,4.04405004,4499.7,4499.6,3.94899999]
[1758406556909,6.26641412,4499.7,4499.6,3.94899999]
[1758406557136,4.04404374,4499.7,4499.6,3.94899999]
[1758406559472,3.80864374,4499.7,4499.6,3.94899999]
[1758406559623,6.03101412,4499.7,4499.6,3.94899999]
[1758406559990,6.26641412,4499.7,4499.6,3.94899999]
[1758406560168,6.26641412,4499.7,4499.6,0.001]
[1758406560169,13.48601716,4499.7,4499.6,0.001]
[1758406560371,13.69407197,4499.7,4499.6,0.001]
[1758406563344,13.69426443,4499.7,4499.6,0.001]
[1758406564731,13.69626443,4499.7,4499.6,0.001]
[1758406571870,14.70097037,4499.7,4499.6,0.001]
[1758406580596,9.24126139,4499.7,4499.6,0.001]
[1758406580802,14.71507037,4499.7,4499.6,0.001]
[1758406585812,9.49076139,4499.7,4499.6,0.001]
[1758406586018,14.71507037,4499.7,4499.6,0.001]
[1758406591808,14.71508808,4499.7,4499.6,0.001]
[1758406595690,14.46558808,4499.7,4499.6,0.001]
[1758406596045,14.71508808,4499.7,4499.6,0.001]
[1758406600985,15.50708808,4499.7,4499.6,0.001]
[1758406617028,15.50698571,4499.7,4499.6,0.001]
[1758406620408,15.25748571,4499.7,4499.6,0.001]
[1758406621826,15.50718571,4499.7,4499.6,0.001]
[1758406622029,15.25748571,4499.7,4499.6,0.001]
[1758406622530,15.25745941,4499.7,4499.6,0.001]
[1758406632363,2.22256795,4499.3,4499.2,0.001]
[1758406632657,6.238348,4499.3,4499.2,0.001]
[1758406632863,9.238348,4499.3,4499.2,0.001]
[1758406633058,9.482348,4499.3,4499.2,0.001]
[1758406633931,13.70419473,4499.3,4499.2,0.001]
[1758406637277,15.62619473,4499.3,4499.2,0.001]
[1758406650582,15.62627557,4499.3,4499.2,0.001]
[1758406654201,15.62636333,4499.3,4499.2,0.001]
[1758406654772,15.85506333,4499.3,4499.2,0.001]
[1758406655697,16.64706333,4499.3,4499.2,0.001]
[1758406657907,16.41836333,4499.3,4499.2,0.001]
[1758406665238,12.1965166,4499.3,4499.2,0.001]
[1758406665408,16.41836333,4499.3,4499.2,0.001]
[1758406665706,16.65976333,4499.3,4499.2,0.001]
[1758406666741,16.6596518,4499.3,4499.2,0.001]
[1758406668362,16.4182518,4499.3,4499.2,0.001]
[1758406672359,8.51340507,4499.3,4499.2,0.001]
[1758406672566,16.4182518,4499.3,4499.2,0.001]
[1758406674760,16.41815924,4499.3,4499.2,0.001]
[1758406675165,12.73515924,4499.3,4499.2,0.001]
[1758406675463,11.40531251,4499.3,4499.2,0.2326]
[1758406677358,11.19734875,4499.3,4499.2,0.2326]
[1758406677666,11.07256795,4499.3,4499.2,0.2326]
[1758406678035,11.28050998,4499.3,4499.2,0.2326]
[1758406678261,11.4052752,4499.3,4499.2,0.2326]
[1758406678668,11.07256795,4499.3,4499.2,0.2326]
[1758406680868,11.28050325,4499.3,4499.2,0.2326]
[1758406681164,11.28050325,4499.3,4499.2,4.18059999]
[1758406681971,5.46656795,4499.3,4499.2,4.18059999]
[1758406682169,9.14956795,4499.3,4499.2,4.18059999]
[1758406682535,9.48218604,4499.3,4499.2,4.18059999]
[1758406684875,9.27429973,4499.3,4499.2,4.18059999]
[1758406685180,9.48212724,4499.3,4499.2,4.18059999]
[1758406686280,9.27429973,4499.3,4499.2,4.18059999]
[1758406686472,9.48208237,4499.3,4499.2,4.18059999]
[1758406689600,3.57651442,4499.3,4499.2,4.18059999]
[1758406689810,7.25851442,4499.3,4499.2,4.18059999]
[1758406689964,9.48108237,4499.3,4499.2,4.18059999]
[1758406693500,5.79908237,4499.3,4499.2,4.18059999]
[1758406693675,9.48108237,4499.3,4499.2,4.18059999]
[1758406693874,5.79908237,4499.3,4499.2,4.18059999]
[1758406694145,0.12473178,4499.3,4499.2,4.60385999]
[1758406694294,3.80673178,4499.3,4499.2,4.60385999]
[1758406698713,0.12473178,4499.3,4499.2,4.60385999]
[1758406698874,0.12452958,4499.5,4499.2,6.82647734]
[1758406699080,0.12452958,4499.5,4499.3,0.25892567]
[1758406699281,3.682,4499.5,4499.4,0.68497326]
[1758406699475,0.12652958,4499.6,4499.5,2.22246916]
[1758406699476,0.002,4499.6,4499.5,2.22246916]
[1758406699674,0.002,4499.6,4499.5,6.42939384]
[1758406699872,0.002,4499.6,4499.5,6.40716915]
[1758406700480,0.002,4499.6,4499.5,6.4962444]
[1758406700679,0.002,4499.6,4499.5,7.75766303]
[1758406710740,0.002,4499.7,4499.6,6.16841976]
[1758406710954,0.002,4499.7,4499.6,6.40511976]
[1758406715150,0.002,4499.7,4499.6,6.16841976]
[1758406719077,0.002,4499.7,4499.6,9.84941976]
[1758406719280,0.002,4499.7,4499.6,11.26015765]
[1758406729270,0.002,4499.7,4499.6,9.03773788]
[1758406729471,0.2295,4499.7,4499.6,11.26015765]
[1758406729979,0.002,4499.7,4499.6,11.26015765]
[1758406730180,0.002,4499.7,4499.6,11.49865765]
[1758406730380,0.002,4499.7,4499.6,11.49965765]
[1758406730678,0.002,4499.7,4499.6,11.26115765]
[1758406735806,0.002,4499.7,4499.6,11.49965765]
[1758406740431,0.002,4500.1,4500.0,6.15022221]
[1758406740592,0.35427027,4500.1,4500.0,10.44524443]
[1758406742705,0.2295,4500.1,4500.0,10.44524443]
[1758406743507,0.35425723,4500.1,4500.0,10.44524443]
[1758406743709,0.12675723,4500.1,4500.0,10.44524443]
[1758406743908,0.002,4500.1,4500.0,10.44524443]
[1758406744496,0.002,4500.1,4500.0,6.76524443]
[1758406746232,0.2417,4500.1,4500.0,6.76524443]
[1758406749121,0.36643706,4500.1,4500.0,4.54302221]
[1758406749335,0.2417,4500.1,4500.0,6.76524443]
[1758406750653,0.002,4500.1,4500.0,6.76524443]
[1758406750932,0.002,4500.1,4500.0,4.54302221]
[1758406751139,0.36643413,4500.1,4500.0,3.92799999]
[1758406763915,0.36643413,4500.1,4500.0,3.92899999]
[1758406765952,0.12673413,4500.1,4500.0,3.92899999]
[1758406767249,0.35243413,4500.1,4500.0,3.92899999]
[1758406771555,0.12673413,4500.1,4500.0,3.92899999]
[1758406772829,0.49716826,4500.1,4500.0,3.92899999]
[1758406774434,0.72286826,4500.1,4500.0,3.92899999]
[1758406775755,0.49716826,4500.1,4500.0,3.92899999]
[1758406787584,0.74376826,4500.1,4500.0,3.92899999]
[1758406790450,0.49716826,4500.1,4500.0,3.92899999]
[1758406798320,0.49724259,4500.1,4500.0,3.92899999]
[1758406799209,0.74384259,4500.1,4500.0,3.92899999]
[1758406800012,2.96601543,4500.1,4500.0,3.92899999]
[1758406801473,2.71941543,4500.1,4500.0,3.92899999]
[1758406804288,6.16241135,4500.1,4500.0,3.92899999]
[1758406808745,6.16241135,4500.1,4500.0,0.001]
[1758406819855,9.84241135,4500.1,4500.0,0.001]
[1758406820056,9.39941543,4500.1,4500.0,0.001]
[1758406820243,5.71941543,4500.1,4500.0,0.001]
[1758406820472,5.71941543,4500.1,4500.0,3.92899999]
[1758406820637,9.39941543,4500.1,4500.0,3.92899999]
[1758406824380,9.60715444,4500.1,4500.0,3.92899999]
[1758406828287,5.92715444,4500.1,4500.0,3.92899999]
[1758406828462,9.39941543,4500.1,4500.0,4.17749999]
[1758406829781,9.39941543,4500.1,4500.0,3.92899999]
[1758406830584,9.6072634,4500.1,4500.0,3.92899999]
[1758406834435,3.70509056,4500.1,4500.0,3.92899999]
[1758406834592,3.70509056,4500.1,4500.0,4.17749999]
[1758406834593,7.38509056,4500.1,4500.0,4.17749999]
[1758406835692,9.6072634,4500.1,4500.0,4.17749999]
[1758406835920,7.38509056,4500.1,4500.0,4.17749999]
[1758406837332,3.49724259,4500.1,4500.0,4.17749999]
[1758406837501,7.17724259,4500.1,4500.0,4.59524999]
[1758406839336,7.17724259,4500.1,4500.0,4.17749999]
[1758406841340,0.49724259,4500.1,4500.0,4.17749999]
[1758406841634,4.17624259,4500.1,4500.0,4.19972221]
[1758406841841,4.17624259,4500.1,4500.0,4.17749999]
[1758406845926,4.17624259,4500.1,4500.0,3.92899999]
[1758406848461,0.49724259,4500.1,4500.0,3.92899999]
[1758406848621,4.17624259,4500.1,4500.0,4.39159425]
[1758406852031,6.39841543,4500.1,4500.0,3.92899999]
[1758406852231,6.63921543,4500.1,4500.0,3.92899999]
[1758406854272,6.39841543,4500.1,4500.0,3.92899999]
[1758406854564,4.17624259,4500.1,4500.0,3.92899999]
[1758406855869,4.41704259,4500.1,4500.0,3.92899999]
[1758406857054,6.63921543,4500.1,4500.0,3.92899999]
[1758406858936,4.41704259,4500.1,4500.0,3.92899999]
[1758406861290,4.41704259,4500.1,4500.0,0.001]
[1758406862990,6.63921543,4500.1,4500.0,0.001]
[1758406864460,6.63925489,4500.1,4500.0,0.001]
[1758406864661,4.41708205,4500.1,4500.0,0.001]
[1758406872718,4.41709115,4500.1,4500.0,0.001]
[1758406873911,4.41709115,4500.1,4500.0,3.92899999]
[1758406874218,4.41709369,4500.1,4500.0,3.92899999]
[1758406874831,6.63926653,4500.1,4500.0,3.92899999]
[1758406875034,6.63266653,4500.1,4500.0,3.92899999]
[1758406876728,6.84076501,4500.1,4500.0,3.92899999]
[1758406881330,6.60656501,4500.1,4500.0,3.92899999]
[1758406881694,6.84076501,4500.1,4500.0,3.92899999]
[1758406884644,6.60659326,4500.1,4500.0,3.92899999]
[1758406885216,4.38442042,4500.1,4500.0,3.92899999]
[1758406885949,6.60659326,4500.1,4500.0,3.92899999]
[1758406886246,4.38442042,4500.1,4500.0,3.92899999]
[1758406887314,4.38442042,4500.1,4500.0,4.17849999]
[1758406887550,4.38442042,4500.1,4500.0,3.92899999]
[1758406889363,6.60659326,4500.1,4500.0,3.92899999]
[1758406890433,4.38442042,4500.1,4500.0,3.92899999]
[1758406894663,6.60659326,4500.1,4500.0,3.92899999]
[1758406894832,6.84079326,4500.1,4500.0,3.92899999]
[1758406895237,6.84079326,4500.1,4500.0,0.001]